bitfinex-derivatives/quotes_SOLF0:USTF0_20251219
["timestamp","ask_amount","ask_price","bid_price","bid_amount"]
[1766137028963,3.46,124.54,124.46,9.21559537]
[1766137029267,3.46,124.54,124.47,1.71]
[1766137029971,0.0562891,124.52,124.49,0.05323215]
[1766137030876,10.6902,124.55,124.49,1.76323215]
[1766137031658,0.05844337,124.53,124.49,0.05323215]
[1766137034572,3.51844337,124.53,124.49,0.05323215]
[1766137035770,10.74984337,124.53,124.49,0.00323215]
[1766137035967,10.74984337,124.53,124.45,1.66]
[1766137035968,3.46,124.52,124.45,1.66]
[1766137036873,0.05960513,124.5,124.47,0.05211536]
[1766137048478,3.51960513,124.5,124.47,0.05211536]
[1766137051183,3.51960513,124.5,124.47,0.00211536]
[1766137051888,3.51960513,124.5,124.43,1.71]
[1766137052676,3.46,124.49,124.43,1.71]
[1766137052973,0.05653985,124.47,124.45,0.05599937]
[1766137054387,0.05653985,124.47,124.41,47.46]
[1766137054388,3.32653985,124.47,124.41,49.22]
[1766137055380,3.32653985,124.47,124.43,0.0588353]
[1766137058183,3.32653985,124.47,124.4,1.92416444]
[1766137058389,3.32653985,124.47,124.4,3.79416444]
[1766137059189,3.32653985,124.47,124.42,0.05739393]
[1766137059483,3.32653985,124.47,124.38,1.87]
[1766137059691,3.27,124.46,124.38,1.87]
[1766137059887,3.27,124.45,124.36,49.39]
[1766137060590,0.05148679,124.42,124.39,0.05388627]
[1766137060785,0.00148679,124.42,124.39,1.98388627]
[1766137064493,0.00148679,124.42,124.39,0.05388627]
[1766137065281,3.27148679,124.42,124.39,0.05388627]
[1766137065593,3.27148679,124.42,124.36,1.88]
[1766137066596,3.27148679,124.42,124.38,0.05740198]
[1766137067499,0.00148679,124.42,124.38,1.98740198]
[1766137068684,0.00148679,124.42,124.38,0.05740198]
[1766137073292,0.00148679,124.42,124.38,1.98740198]
[1766137074296,3.27,124.47,124.38,1.98740198]
[1766137074502,3.27,124.47,124.38,1.93]
[1766137074996,3.27,124.47,124.4,1.93]
[1766137075198,4.64242789,124.49,124.4,1.93]
[1766137075402,3.27,124.49,124.4,1.93]
[1766137075605,0.0564681,124.46,124.43,0.05661145]
[1766137076104,3.27,124.49,124.43,0.05661145]
[1766137076105,3.27,124.49,124.43,1.98661145]
[1766137077199,0.06121621,124.47,124.43,1.98661145]
[1766137079502,3.27,124.51,124.44,1.82]
[1766137080506,0.05314386,124.49,124.46,0.05463944]
[1766137082805,0.05314386,124.49,124.46,1.87463944]
[1766137083012,0.00314386,124.49,124.46,1.87463944]
[1766137083207,0.00314386,124.49,124.46,0.05463944]
[1766137092528,3.30314386,124.49,124.46,0.05463944]
[1766137092819,0.00314386,124.49,124.46,1.81463944]
[1766137093822,0.00314386,124.49,124.46,0.00463944]
[1766137094328,3.3,124.48,124.42,1.76]
[1766137094527,3.3,124.5,124.42,1.76]
[1766137095118,0.00306235,124.47,124.45,0.06046689]
[1766137095633,0.00306235,124.47,124.45,1.82046689]
[1766137110742,0.00306235,124.47,124.46,1.76]
[1766137119951,0.00306235,124.47,124.45,7.53588727]
[1766137120140,0.00306235,124.47,124.45,0.06046689]
[1766137121656,0.00306235,124.47,124.45,7.53588727]
[1766137121856,0.00306235,124.47,124.45,0.06046689]
[1766137122256,0.00306235,124.47,124.45,7.53588727]
[1766137123958,0.00306235,124.47,124.45,0.06046689]
[1766137124259,0.00306235,124.47,124.45,7.53588727]
[1766137127466,0.00306235,124.47,124.45,0.06046689]
[1766137136068,0.00306235,124.47,124.42,9.23542038]
[1766137136773,3.34306235,124.47,124.41,7.47542038]
[1766137137066,3.34306235,124.47,124.4,1.82]
[1766137137267,3.34306235,124.47,124.38,7.47542038]
[1766137137473,3.34,124.47,124.38,9.35542038]
[1766137137674,3.34,124.45,124.38,9.35542038]
[1766137138262,3.40071209,124.43,124.4,0.05524605]
[1766137140080,3.40071209,124.43,124.37,54.93542038]
[1766137140274,3.40071209,124.43,124.37,49.4]
[1766137140866,0.06071209,124.43,124.38,1.94]
[1766137141067,0.06071209,124.43,124.39,0.06040985]
[1766137141270,0.06071209,124.43,124.39,2.00040985]
[1766137142281,0.00071209,124.43,124.39,2.00040985]
[1766137143673,3.3,124.48,124.39,2.00040985]
[1766137143966,3.3,124.5,124.41,1.87]
[1766137144275,3.3,124.5,124.42,1.87]
[1766137144782,0.05186699,124.47,124.45,0.05335302]
[1766137145178,0.00186699,124.47,124.45,0.05335302]
[1766137145373,3.3,124.5,124.45,1.87335302]
[1766137145578,3.22,124.52,124.45,1.87335302]
[1766137145887,3.22,124.52,124.45,1.82]
[1766137146386,0.0615736,124.5,124.47,0.05818841]
[1766137146582,3.2815736,124.5,124.43,1.82]
[1766137146989,0.0615736,124.5,124.44,1.88]
[1766137147190,3.2815736,124.5,124.44,1.88]
[1766137147704,3.2815736,124.5,124.46,0.05200627]
[1766137149089,0.0615736,124.5,124.46,0.05200627]
[1766137149291,3.2815736,124.5,124.46,0.05200627]
[1766137149495,3.2815736,124.5,124.46,0.00200627]
[1766137152793,3.2815736,124.5,124.42,1.88]
[1766137152794,3.22,124.49,124.42,1.88]
[1766137153000,3.22,124.48,124.4,49.41]
[1766137153595,3.22,124.48,124.43,0.05426678]
[1766137153798,0.05199232,124.45,124.43,0.05426678]
[1766137154198,0.00199232,124.45,124.43,0.05426678]
[1766137154994,3.22,124.48,124.43,0.05426678]
[1766137155200,3.22,124.48,124.43,1.93426678]
[1766137156104,0.05687992,124.47,124.43,1.93426678]
[1766137156499,0.05687992,124.47,124.43,0.05426678]
[1766137159400,3.27687992,124.47,124.43,0.05426678]
[1766137163198,0.05687992,124.47,124.43,0.05426678]
[1766137163402,3.22,124.53,124.44,1.83]
[1766137164402,0.05439715,124.5,124.47,0.05345332]
[1766137168509,0.00439715,124.5,124.47,1.88345332]
[1766137168706,3.22,124.53,124.47,1.88345332]
[1766137169707,0.05281281,124.51,124.47,1.88345332]
[1766137175917,0.05281281,124.51,124.47,0.05345332]
[1766137183120,3.50281281,124.51,124.47,0.05345332]
[1766137192932,0.05281281,124.51,124.47,1.83345332]
[1766137193731,3.45,124.55,124.49,1.78]
[1766137194737,0.06145143,124.53,124.51,0.05538385]
[1766137204336,3.48145143,124.53,124.48,47.46]
[1766137205633,3.48145143,124.53,124.49,0.06010517]
[1766137216840,0.06145143,124.53,124.49,1.89010517]
[1766137217846,3.48145143,124.53,124.49,0.06010517]
[1766137219638,3.48145143,124.53,124.49,0.00010517]
[1766137223342,3.48145143,124.53,124.45,47.44]
[1766137223543,3.42,124.53,124.45,47.44]
[1766137224239,0.0520035,124.5,124.45,47.44]
[1766137225256,0.0520035,124.5,124.45,49.39]
[1766137225442,0.0520035,124.5,124.46,0.05459064]
[1766137226059,3.4720035,124.5,124.46,0.05459064]
[1766137232757,3.4720035,124.5,124.46,0.00459064]
[1766137232958,3.4720035,124.5,124.42,47.46]
[1766137233257,3.42,124.5,124.41,9.49928948]
[1766137233961,3.42965765,124.47,124.44,0.05671314]
[1766137235260,0.05965765,124.47,124.44,0.05671314]
[1766137236861,3.42965765,124.47,124.44,0.05671314]
[1766137238359,3.42965765,124.47,124.4,2.06]
[1766137238562,3.42965765,124.47,124.41,2.06]
[1766137239464,3.42965765,124.47,124.43,0.05388657]
[1766137243164,3.42965765,124.47,124.43,0.00388657]
[1766137243359,3.42965765,124.47,124.37,9.3501]
[1766137243557,3.37,124.47,124.38,2.11]
[1766137244371,3.42477833,124.44,124.41,0.05745698]
[1766137246969,0.05477833,124.44,124.41,0.05745698]
[1766137259074,3.42477833,124.44,124.38,7.2395]
[1766137259271,3.42477833,124.44,124.37,9.66928948]
[1766137259469,3.42477833,124.44,124.37,2.17]
[1766137259772,3.42477833,124.44,124.37,9.4102]
[1766137260177,3.42477833,124.44,124.39,0.05493473]
[1766137260980,3.42477833,124.44,124.39,2.22493473]
[1766137260981,0.05477833,124.44,124.39,2.22493473]
[1766137262685,0.05477833,124.44,124.39,9.46393473]
[1766137263083,0.05477833,124.44,124.4,2.17]
[1766137265384,54.6736,124.49,124.4,2.17]
[1766137265385,3.49,124.48,124.4,2.17]
[1766137265682,3.49,124.48,124.41,2.12]
[1766137266273,3.49,124.48,124.41,9.3576]
[1766137266479,3.54170895,124.46,124.43,0.05812056]
[1766137267586,0.05170895,124.46,124.43,0.05812056]
[1766137267882,3.54170895,124.46,124.39,9.61928948]
[1766137268186,3.49,124.46,124.39,9.61928948]
[1766137268984,0.05644836,124.44,124.41,0.05701138]
[1766137269487,3.49,124.48,124.41,2.23701138]
[1766137269686,112.4751,124.55,124.44,3.29]
[1766137269984,7.2312,124.53,124.45,3.29]
[1766137270183,159.9043,124.56,124.45,3.29]
[1766137270585,0.06016151,124.52,124.49,0.05887973]
[1766137271085,0.06016151,124.52,124.45,3.29]
[1766137271288,0.06016151,124.52,124.45,10.5254]
[1766137271589,3.55016151,124.52,124.45,10.5254]
[1766137271792,3.49,124.51,124.43,3.29]
[1766137272290,0.05101841,124.48,124.43,3.29]
[1766137273179,0.05101841,124.48,124.44,0.0603053]
[1766137273783,0.00101841,124.48,124.44,3.3503053]
[1766137273985,0.00101841,124.48,124.44,10.84959478]
[1766137274186,0.00101841,124.48,124.45,3.29]
[1766137274792,0.00101841,124.48,124.47,10.78928948]
[1766137275087,0.00101841,124.48,124.47,12.38928948]
[1766137275390,0.00101841,124.48,124.47,12.38572623]
[1766137276294,0.00101841,124.48,124.47,4.89]
[1766137279586,0.00101841,124.48,124.47,3.29]
[1766137285604,0.00101841,124.48,124.46,7.2349]
[1766137285795,0.00101841,124.48,124.46,47.46]
[1766137288699,0.00101841,124.48,124.46,50.75]
[1766137297200,0.00101841,124.48,124.47,3.53]
[1766137304706,0.00101841,124.48,124.46,10.765]
[1766137304900,0.00101841,124.48,124.47,47.46]
[1766137305099,0.00101841,124.48,124.47,50.99]
[1766137312116,0.00101841,124.48,124.47,47.46]
[1766137313317,0.00101841,124.48,124.47,54.93185091]
[1766137313610,0.00101841,124.48,124.47,47.46]
[1766137317122,0.00101841,124.48,124.47,50.99]
[1766137317419,0.00101841,124.48,124.47,58.46185091]
[1766137317620,0.00101841,124.48,124.47,50.99]
[1766137324626,0.00101841,124.48,124.47,60.74392548]
[1766137324818,0.00101841,124.48,124.47,50.99]
[1766137329331,0.00101841,124.48,124.46,10.02191984]
[1766137329522,0.00101841,124.48,124.47,7.51746613]
[1766137331930,0.00101841,124.48,124.46,47.44]
[1766137335631,7.2296,124.56,124.46,58.0451]
[1766137335829,7.2296,124.56,124.47,3.37]
[1766137336634,0.05509212,124.53,124.5,0.00436894]
[1766137347242,0.05509212,124.53,124.46,47.44]
[1766137348348,0.05509212,124.53,124.48,0.05838867]
[1766137348548,7.28639212,124.53,124.48,0.05838867]
[1766137362660,7.28639212,124.53,124.43,20.57841984]
[1766137362860,112.4861,124.53,124.44,3.32]
[1766137363864,0.0517514,124.5,124.47,0.03040499]
[1766137368769,0.0517514,124.5,124.47,3.35040499]
[1766137368964,113.83648684,124.59,124.47,3.35040499]
[1766137369170,47.42,124.56,124.47,3.32]
[1766137369373,159.8807,124.56,124.47,3.32]
[1766137369968,0.05187304,124.53,124.5,0.05274753]
[1766137370774,0.05187304,124.53,124.47,3.32]
[1766137371675,0.05187304,124.53,124.49,0.02940886]
[1766137374777,7.28317304,124.53,124.49,0.02940886]
[1766137375080,7.28317304,124.53,124.45,13.33437942]
[1766137375278,7.2313,124.53,124.45,3.32]
[1766137375468,7.2313,124.53,124.45,13.33437942]
[1766137375670,7.2313,124.53,124.45,3.32]
[1766137376079,0.05424345,124.5,124.45,3.32]
[1766137382077,0.00424345,124.5,124.47,3.32]
[1766137387479,0.00424345,124.5,124.46,0.05]
[1766137389895,0.00424345,124.5,124.46,3.32]
[1766137391982,0.00424345,124.5,124.47,10.79286696]
[1766137394501,0.00424345,124.5,124.48,3.27]
[1766137407716,0.00424345,124.5,124.49,10.79286696]
[1766137408106,0.00424345,124.5,124.49,12.38576607]
[1766137408410,0.00424345,124.5,124.49,4.87]
[1766137410013,0.00424345,124.5,124.49,29.09850027]
[1766137411508,0.00424345,124.5,124.49,4.87]
[1766137413110,0.00424345,124.5,124.49,28.4668717]
[1766137413310,0.00424345,124.5,124.49,4.87]
[1766137417412,0.00424345,124.5,124.49,29.44083331]
[1766137428131,0.00424345,124.5,124.49,36.92414069]
[1766137430238,0.00424345,124.5,124.49,35.32414069]
[1766137431141,0.00424345,124.5,124.49,27.84083331]
[1766137434246,0.00424345,124.5,124.49,29.44083331]
[1766137443136,0.00424345,124.5,124.49,63.57521273]
[1766137443336,112.3769,124.65,124.53,10.4206]
[1766137443551,112.3769,124.65,124.54,47.44]
[1766137444049,112.3769,124.65,124.54,50.82]
[1766137444248,0.05305616,124.61,124.58,0.00424345]
[1766137445948,1.65305616,124.61,124.58,0.00424345]
[1766137447156,1.65305616,124.61,124.53,62.16447935]
[1766137447455,7.2262,124.62,124.53,62.16447935]
[1766137448055,0.05433873,124.59,124.53,62.16447935]
[1766137448255,0.05433873,124.59,124.53,65.54447935]
[1766137448754,0.05433873,124.59,124.54,7.2303]
[1766137449254,0.05433873,124.59,124.54,10.6103]
[1766137450354,0.05433873,124.59,124.54,18.10407935]
[1766137450958,0.05433873,124.59,124.54,10.6103]
[1766137451149,0.05433873,124.59,124.54,18.10407935]
[1766137451756,0.05433873,124.59,124.54,10.6103]
[1766137452162,0.05433873,124.59,124.54,18.10407935]
[1766137455661,0.05433873,124.59,124.55,7.49377935]
[1766137456661,0.05433873,124.59,124.54,18.10407935]
[1766137461064,0.05433873,124.59,124.55,3.38]
[1766137465079,0.05433873,124.59,124.56,3.38]
[1766137465267,7.2244,124.65,124.56,3.43433873]
[1766137465468,7.2244,124.65,124.56,3.38]
[1766137465770,7.2244,124.65,124.57,3.38]
[1766137466476,0.05564512,124.62,124.6,0.05433873]
[1766137483187,7.2238,124.66,124.6,3.39433873]
[1766137484092,0.05054526,124.64,124.6,3.39433873]
[1766137501404,0.00054526,124.64,124.6,3.39433873]
[1766137511907,0.00054526,124.64,124.61,3.37]
[1766137516417,0.00054526,124.64,124.61,10.86377935]
[1766137518022,0.00054526,124.64,124.61,3.37]
[1766137518323,0.00054526,124.64,124.61,10.86377935]
[1766137518710,0.00054526,124.64,124.61,3.37]
[1766137518915,0.00054526,124.64,124.61,10.86377935]
[1766137519220,1.35896756,124.69,124.62,3.37]
[1766137520216,0.05741325,124.67,124.64,0.0569171]
[1766137521713,0.05741325,124.67,124.62,3.37]
[1766137522826,0.05741325,124.67,124.63,0.06052215]
[1766137533032,0.05741325,124.67,124.62,3.37]
[1766137533033,7.28051325,124.67,124.62,2.33440787]
[1766137534132,7.28051325,124.67,124.63,0.04308986]
[1766137536434,54.04051325,124.67,124.63,0.04308986]
[1766137543239,54.04051325,124.67,124.63,3.51308986]
[1766137557364,112.3673,124.66,124.59,10.99103692]
[1766137557564,46.76,124.67,124.6,3.47]
[1766137558558,0.0600728,124.65,124.6,3.47]
[1766137561058,112.4378728,124.65,124.56,9.9914121]
[1766137561357,0.06134122,124.62,124.55,17.2213121]
[1766137561557,0.00134122,124.62,124.55,7.2299]
[1766137562569,0.00134122,124.62,124.57,0.05653508]
[1766137563068,0.00134122,124.62,124.58,3.47]
[1766137583587,112.3428,124.69,124.58,3.47]
[1766137583785,112.3428,124.69,124.59,3.21]
[1766137584691,0.05772785,124.65,124.63,0.05978129]
[1766137591396,7.2213,124.7,124.63,3.26978129]
[1766137591598,7.2213,124.7,124.63,3.21]
[1766137592093,46.78,124.71,124.63,3.21]
[1766137592488,0.05546965,124.68,124.66,0.05085272]
[1766137593191,46.78,124.71,124.66,3.26085272]
[1766137593389,7.2215,124.7,124.61,7.2263]
[1766137594397,0.05360525,124.67,124.64,0.06165432]
[1766137599400,46.83360525,124.67,124.64,0.06165432]
[1766137603498,159.19440525,124.67,124.59,3.32]
[1766137603687,159.19440525,124.67,124.57,3.32]
[1766137603688,112.3767,124.65,124.57,3.32]
[1766137604298,7.2251,124.64,124.57,3.32]
[1766137604498,0.05294941,124.62,124.59,0.05810378]
[1766137605004,0.05294941,124.62,124.59,3.37810378]
[1766137610700,7.2233,124.67,124.59,3.37810378]
[1766137610899,46.8,124.65,124.59,3.32]
[1766137611900,0.05598578,124.63,124.61,0.05271254]
[1766137614198,54.0233,124.67,124.61,3.37271254]
[1766137615206,0.05781403,124.65,124.61,3.37271254]
[1766137616305,7.28201403,124.65,124.61,3.37271254]
[1766137616510,1.93,124.64,124.56,9.9914121]
[1766137616705,1.93,124.64,124.55,17.2210121]
[1766137617409,0.0570073,124.61,124.58,0.06037209]
[1766137618512,0.0570073,124.61,124.58,3.38037209]
[1766137620715,1.93,124.64,124.58,3.38037209]
[1766137621614,0.05506864,124.62,124.58,3.38037209]
[1766137621815,9.2642,124.65,124.58,3.38037209]
[1766137622817,0.05620077,124.63,124.58,3.38037209]
[1766137638419,0.05620077,124.63,124.59,3.4]
[1766137651437,9.2639,124.66,124.59,3.4]
[1766137651733,46.82,124.66,124.6,3.4]
[1766137652237,46.82,124.66,124.61,3.4]
[1766137652539,2.15991084,124.65,124.62,0.06024463]
[1766137652739,2.04,124.64,124.59,3.4]
[1766137653626,7.28431084,124.65,124.6,0.05343943]
[1766137653829,0.05991084,124.65,124.6,3.45343943]
[1766137656836,2.08991084,124.65,124.6,3.45343943]
[1766137657942,9.31431084,124.65,124.6,3.45343943]
[1766137658144,0.05991084,124.65,124.6,3.45343943]
[1766137662238,2.08991084,124.65,124.6,3.45343943]
[1766137662943,10.7349,124.64,124.56,7.50136058]
[1766137663336,3.51,124.64,124.56,7.50136058]
[1766137663643,115.8796,124.66,124.56,7.50136058]
[1766137663846,0.05494769,124.62,124.6,0.0531701]
[1766137665341,0.05494769,124.62,124.6,0.0031701]
[1766137665342,3.56494769,124.62,124.6,0.0031701]
[1766137665531,3.56494769,124.62,124.56,10.97136058]
[1766137666535,3.56494769,124.62,124.58,0.05348541]
[1766137670048,0.05494769,124.62,124.58,3.52348541]
[1766137685261,0.00494769,124.62,124.58,3.52348541]
[1766137697076,0.00494769,124.62,124.59,10.92136058]
[1766137697273,0.00494769,124.62,124.6,3.42]
[1766137698379,0.00494769,124.62,124.61,3.42]
[1766137704776,0.00494769,124.62,124.58,0.05348541]
[1766137710578,0.00494769,124.62,124.58,7.28138541]
[1766137710779,0.00494769,124.62,124.58,14.78454492]
[1766137714389,0.00494769,124.62,124.58,7.55664492]
[1766137720898,0.00494769,124.62,124.59,3.23]
[1766137721287,0.00494769,124.62,124.59,10.73315951]
[1766137721487,0.00494769,124.62,124.61,3.23]
[1766137723393,0.00494769,124.62,124.61,4.83]
[1766137725300,0.00494769,124.62,124.61,12.32728613]
[1766137728203,0.00494769,124.62,124.61,4.83]
[1766137728597,0.00494769,124.62,124.61,28.93]
[1766137728811,112.2703,124.77,124.61,28.93]
[1766137728812,3.26,124.79,124.68,3.23]
[1766137729006,3.26,124.79,124.69,50.63]
[1766137729208,3.26,124.78,124.69,50.63]
[1766137729707,112.2536,124.79,124.72,0.0016062]
[1766137729708,3.26,124.74,124.72,0.0016062]
[1766137731103,1.6,124.74,124.66,3.23]
[1766137731309,3.26,124.73,124.64,57.8542]
[1766137732204,0.0586896,124.7,124.67,0.05225099]
[1766137732910,3.3186896,124.7,124.67,0.05225099]
[1766137736313,3.3186896,124.7,124.67,0.00225099]
[1766137738519,0.0586896,124.7,124.67,0.00225099]
[1766137738814,3.26,124.75,124.67,3.23225099]
[1766137739019,3.26,124.75,124.67,3.23]
[1766137739824,0.05183837,124.72,124.7,0.05478244]
[1766137740116,0.05765323,124.72,124.7,0.05478244]
[1766137754229,3.56765323,124.72,124.65,10.7239]
[1766137754830,3.56765323,124.72,124.65,3.5]
[1766137755223,3.56765323,124.72,124.67,0.06133513]
[1766137756636,3.56765323,124.72,124.67,0.00133513]
[1766137756637,3.51,124.71,124.67,0.00133513]
[1766137761936,0.05765323,124.72,124.67,3.50133513]
[1766137770347,0.05765323,124.72,124.67,10.98997663]
[1766137771541,0.05765323,124.72,124.68,3.43]
[1766137772332,3.31,124.75,124.68,10.9186415]
[1766137772538,3.31,124.75,124.69,3.43]
[1766137772740,3.31,124.77,124.7,3.43]
[1766137773340,0.05206484,124.75,124.72,0.06039811]
[1766137775744,3.3,124.81,124.72,3.31039811]
[1766137775945,3.3,124.81,124.73,3.25]
[1766137776739,0.05121046,124.78,124.76,0.05341982]
[1766137792555,0.05121046,124.78,124.76,3.30341982]
[1766137792556,0.00121046,124.78,124.76,3.30341982]
[1766137792767,3.3,124.82,124.76,3.30341982]
[1766137793659,0.05611203,124.8,124.76,3.30341982]
[1766137797155,10.5133,124.84,124.76,3.30341982]
[1766137797367,10.5133,124.84,124.76,3.25]
[1766137797570,3.3,124.83,124.76,3.25]
[1766137798068,0.05269074,124.81,124.78,0.05175125]
[1766137798565,3.3,124.8,124.74,3.25]
[1766137799471,0.05061494,124.78,124.76,0.0554855]
[1766137802866,0.05061494,124.78,124.72,3.25]
[1766137803875,0.05061494,124.78,124.74,0.05289373]
[1766137804077,0.05061494,124.78,124.74,3.39289373]
[1766137805881,0.00061494,124.78,124.74,3.39289373]
[1766137806581,0.00061494,124.78,124.74,10.61159373]
[1766137806778,0.00061494,124.78,124.75,3.34]
[1766137806981,0.00061494,124.78,124.76,3.34]
[1766137808678,0.00061494,124.78,124.77,3.34]
[1766137815687,0.00061494,124.78,124.77,10.81679169]
[1766137817388,0.00061494,124.78,124.77,3.34]
[1766137818092,0.00061494,124.78,124.77,10.81860157]
[1766137818386,0.00061494,124.78,124.77,3.34]
[1766137818805,0.00061494,124.78,124.77,4.94]
[1766137819797,0.00061494,124.78,124.77,14.92485534]
[1766137819998,0.00061494,124.78,124.77,4.94]
[1766137831213,0.00061494,124.78,124.77,3.34]
[1766137831398,0.00061494,124.78,124.77,13.32485534]
[1766137832509,0.00061494,124.78,124.77,76.36]
[1766137833720,0.00061494,124.78,124.77,84.74485534]
[1766137834014,0.00061494,124.78,124.77,86.34485534]
[1766137834198,0.00061494,124.78,124.77,76.36]
[1766137834402,0.00061494,124.78,124.77,86.34485534]
[1766137835813,7.2089,124.92,124.83,7.2137]
[1766137836114,7.2089,124.92,124.84,47.32]
[1766137836804,0.05355419,124.89,124.87,0.00152848]
[1766137837206,1.65355419,124.89,124.87,0.00152848]
[1766137837508,136.1873,124.98,124.87,3.18152848]
[1766137837815,3.32,124.97,124.88,47.32]
[1766137838209,3.32,124.97,124.86,10.3918]
[1766137838417,3.32,124.97,124.87,47.32]
[1766137838713,3.32,124.92,124.91,0.00047715]
[1766137838899,112.1334,124.92,124.81,3.9295521]
[1766137839100,112.1334,124.92,124.81,47.32]
[1766137839912,0.05408506,124.88,124.81,47.32]
[1766137842717,0.05408506,124.88,124.78,3.18]
[1766137842916,0.05959818,124.84,124.78,1.59149812]
[1766137843105,0.05959818,124.84,124.75,159.6038]
[1766137843305,0.05154488,124.81,124.76,1.59149812]
[1766137843707,0.05154488,124.81,124.75,47.32]
[1766137843911,0.05154488,124.81,124.75,48.91149812]
[1766137844111,0.05154488,124.81,124.75,56.12969812]
[1766137845223,0.05154488,124.81,124.72,3.18]
[1766137845421,112.2165,124.83,124.72,3.18]
[1766137845422,0.05912451,124.78,124.74,1.59149812]
[1766137848220,165.9519,124.85,124.75,3.23154115]
[1766137848418,112.1688,124.89,124.77,3.18]
[1766137848723,119.3792,124.89,124.78,3.18]
[1766137848916,119.3792,124.89,124.79,3.18]
[1766137849119,0.06155048,124.85,124.83,0.05068449]
[1766137849321,1.39339339,124.98,124.85,3.18]
[1766137849625,47.93339339,124.98,124.85,3.18]
[1766137849927,7.2074,124.94,124.86,1.59149812]
[1766137850126,112.093,124.97,124.86,1.59149812]
[1766137850328,0.05543103,124.92,124.9,0.00104758]
[1766137853920,0.05543103,124.92,124.9,1.5925457]
[1766137856122,0.05543103,124.92,124.9,0.00104758]
[1766137858720,0.05543103,124.92,124.85,3.18]
[1766137859032,0.05543103,124.92,124.86,1.59149812]
[1766137859926,112.1441,124.91,124.83,47.32]
[1766137860115,112.1514,124.9,124.82,3.18]
[1766137860516,119.3615,124.9,124.8,3.18]
[1766137861030,0.05350739,124.86,124.8,3.18]
[1766137869337,0.05350739,124.86,124.8,10.3951]
[1766137869531,0.00350739,124.86,124.81,3.19]
[1766137869733,7.2087,124.92,124.81,3.19]
[1766137870538,7.2087,124.92,124.81,10.4043]
[1766137870743,0.05778653,124.88,124.85,0.05304261]
[1766137871038,7.2087,124.92,124.85,3.24304261]
[1766137871937,0.05497675,124.9,124.85,3.24304261]
[1766137873234,112.0593,125.01,124.86,3.19]
[1766137873434,112.0888,124.97,124.86,3.19]
[1766137873833,112.1069,124.95,124.86,3.19]
[1766137874235,0.05478689,124.92,124.83,50.51]
[1766137874539,112.1164,124.94,124.84,3.19]
[1766137875335,0.05961396,124.9,124.88,0.00399824]
[1766137877940,0.05961396,124.9,124.83,47.32]
[1766137878137,0.05961396,124.9,124.82,7.214]
[1766137878344,7.2088,124.92,124.82,7.214]
[1766137879033,0.05694388,124.88,124.86,0.05381056]
[1766137879734,0.05694388,124.88,124.82,3.46]
[1766137881136,0.05694388,124.88,124.8,10.6751]
[1766137881339,0.05071769,124.85,124.78,10.6765]
[1766137881942,0.05071769,124.85,124.76,57.9976]
[1766137882149,0.05817133,124.82,124.76,57.9976]
[1766137882544,0.05817133,124.82,124.76,50.78]
[1766137885143,0.05817133,124.82,124.77,3.46]
[1766137889756,46.54,124.86,124.78,3.51288431]
[1766137889957,46.54,124.86,124.78,3.46]
[1766137890550,7.2105,124.89,124.79,3.46]
[1766137890850,0.05752635,124.85,124.83,0.06156632]
[1766137891250,165.916,124.91,124.83,0.06156632]
[1766137891452,165.916,124.91,124.81,3.46]
[1766137892252,0.05213641,124.87,124.85,0.0591084]
[1766137900875,0.05213641,124.87,124.82,3.46]
[1766137901673,0.05213641,124.87,124.81,7.45606756]
[1766137901873,0.05213641,124.87,124.83,0.06049459]
[1766137903366,0.05213641,124.87,124.83,0.00049459]
[1766137904164,7.2122,124.86,124.83,0.00049459]
[1766137905172,0.05213641,124.87,124.83,3.29049459]
[1766137906877,112.1173,124.94,124.83,3.29049459]
[1766137907073,7.2077,124.94,124.85,3.29]
[1766137907279,7.2077,124.94,124.86,3.29]
[1766137907866,0.06043495,124.91,124.89,0.06156214]
[1766137909785,112.0774,124.99,124.89,3.35156214]
[1766137910076,24.40107562,125.03,124.89,3.29]
[1766137910281,7.2041,125.0,124.9,3.29]
[1766137910781,0.05831059,124.96,124.94,0.05393403]
[1766137910978,7.203,125.02,124.94,3.34393403]